bitfinex-derivatives/quotes_ETHF0:USTF0_20230105
["timestamp","ask_amount","ask_price","bid_price","bid_amount"]
[1672884237207,7.28038664,1254.8,1254.4,1.78523728]
[1672884237418,10.28768664,1254.8,1254.5,3.0073]
[1672884237628,10.28768664,1254.8,1254.6,2.5]
[1672884238258,10.28768664,1254.8,1254.5,3.0073]
[1672884238683,15.62095221,1254.8,1254.5,3.0073]
[1672884239824,12.61365221,1254.8,1254.6,2.5]
[1672884240039,15.62095221,1254.8,1254.6,2.5]
[1672884240253,15.62095221,1254.8,1254.5,3.0073]
[1672884241098,12.61365221,1254.8,1254.4,1.78523728]
[1672884241304,15.62095221,1254.8,1254.5,3.0073]
[1672884241515,15.62095221,1254.8,1254.6,2.5]
[1672884241725,12.61365221,1254.8,1254.6,2.5]
[1672884242035,15.62095221,1254.8,1254.5,2.5]
[1672884242569,4.78038664,1254.7,1254.5,2.5]
[1672884242886,2.0,1254.6,1254.5,2.5]
[1672884243836,2.0,1254.6,1254.4,4.79253728]
[1672884245829,2.0,1254.6,1254.4,1.78523728]
[1672884246032,2.0,1254.6,1254.4,4.79253728]
[1672884247828,2.0,1254.6,1254.4,1.78523728]
[1672884248140,2.0,1254.6,1254.4,4.79253728]
[1672884251194,2.0,1254.6,1254.3,14.63953831]
[1672884252143,2.0,1254.6,1254.3,17.64683831]
[1672884252666,2.0,1254.6,1254.4,1.19419701]
[1672884255926,2.0,1254.6,1254.4,2.97943429]
[1672884258552,2.0,1254.6,1254.4,5.98673429]
[1672884258765,2.0,1254.6,1254.5,1.19419701]
[1672884258966,2.0,1254.6,1254.5,2.5]
[1672884260347,2.0,1254.6,1254.4,8.48673429]
[1672884261388,2.0,1254.6,1254.4,5.98673429]
[1672884261593,2.0,1254.6,1254.4,4.20149701]
[1672884261913,2.0,1254.6,1254.4,5.98673429]
[1672884262125,2.0,1254.6,1254.4,4.20149701]
[1672884262751,5.0073,1254.6,1254.3,1.19419701]
[1672884263071,4.78038664,1254.5,1254.2,2.97579069]
[1672884263274,3.0073,1254.4,1254.2,1.19055341]
[1672884264849,3.0073,1254.4,1254.1,4.28523728]
[1672884266751,3.0073,1254.4,1254.1,2.5]
[1672884267479,3.0073,1254.4,1254.0,17.6513363]
[1672884268418,3.0073,1254.4,1254.0,15.26353728]
[1672884269490,3.0073,1254.4,1254.0,4.79253728]
[1672884269701,3.0073,1254.2,1253.9,1.78523728]
[1672884270223,2.5,1254.1,1253.9,1.78523728]
[1672884270433,2.5,1254.1,1253.8,4.79253728]
[1672884271590,2.5,1254.1,1253.8,3.0073]
[1672884274532,5.5073,1254.1,1253.8,3.0073]
[1672884274741,5.5073,1254.1,1253.9,2.5]
[1672884275468,5.5073,1254.1,1253.8,5.5073]
[1672884275685,2.5,1254.1,1253.8,2.5]
[1672884276102,5.5073,1254.1,1253.8,5.5073]
[1672884276944,2.5,1254.1,1253.8,5.5073]
[1672884277160,5.5073,1254.1,1253.8,5.5073]
[1672884280410,5.5073,1254.1,1253.8,3.0073]
[1672884283048,5.5073,1254.1,1253.7,5.5073]
[1672884288519,2.5,1254.1,1253.7,2.5]
[1672884288724,5.5073,1254.1,1253.7,5.5073]
[1672884292522,13.4783,1254.1,1253.7,3.0073]
[1672884292735,13.4783,1254.1,1253.6,2.5]
[1672884292936,3.0073,1253.9,1253.6,2.5]
[1672884293146,2.5,1253.8,1253.6,2.5]
[1672884293676,5.5073,1254.1,1253.7,3.0073]
[1672884293890,5.5073,1254.1,1253.8,2.5]
[1672884294627,5.5073,1254.1,1253.6,2.5]
[1672884295359,5.5073,1254.1,1253.7,3.0073]
[1672884295570,5.5073,1254.1,1253.8,2.5]
[1672884296203,5.5073,1254.1,1253.6,2.5]
[1672884296410,3.0073,1253.9,1253.6,2.5]
[1672884296610,2.0,1253.8,1253.6,2.5]
[1672884298094,5.5073,1254.1,1253.6,2.5]
[1672884298294,5.5073,1254.1,1253.7,3.0073]
[1672884298509,5.5073,1254.1,1253.8,2.5]
[1672884302921,2.5,1254.1,1253.8,2.5]
[1672884303133,2.0,1253.9,1253.6,15.26353728]
[1672884303878,2.0,1253.9,1253.6,17.6513363]
[1672884304397,2.0,1253.9,1253.6,7.29253728]
[1672884305024,2.0,1253.9,1253.6,9.6803363]
[1672884305236,2.0,1253.9,1253.6,7.29253728]
[1672884305657,3.0073,1254.0,1253.7,1.78523728]
[1672884305868,2.0,1253.9,1253.8,2.5]
[1672884308915,3.0073,1254.0,1253.8,2.5]
[1672884309544,2.0,1253.9,1253.8,2.5]
[1672884311230,2.0,1253.9,1253.7,4.1730363]
[1672884311541,2.0,1253.9,1253.7,1.78523728]
[1672884311961,1.99571575,1253.9,1253.7,1.78523728]
[1672884313333,1.99571575,1253.9,1253.6,9.6803363]
[1672884313747,3.0073,1254.0,1253.7,7.971]
[1672884313958,2.5,1254.1,1253.8,15.26353728]
[1672884314384,2.5,1254.1,1253.9,1.5]
[1672884314801,2.5,1254.1,1253.8,7.29253728]
[1672884315964,2.5,1254.1,1253.8,4.79253728]
[1672884316169,2.5,1254.1,1253.8,3.0073]
[1672884316384,3.0073,1254.0,1253.8,3.0073]
[1672884316698,2.0,1253.9,1253.8,3.0073]
[1672884317646,2.0,1253.9,1253.7,4.79253728]
[1672884319639,2.0,1253.9,1253.6,12.25623728]
[1672884319854,2.0,1253.9,1253.6,14.6440363]
[1672884320059,2.0,1253.9,1253.6,12.1440363]
[1672884320377,5.0073,1253.9,1253.5,1.78723728]
[1672884320799,3.0073,1253.7,1253.5,0.002]
[1672884321424,2.5,1253.6,1253.5,0.002]
[1672884323321,10.471,1253.6,1253.2,1.41404603]
[1672884323638,3.0073,1253.5,1253.2,1.41404603]
[1672884324376,2.5,1253.4,1253.2,1.41404603]
[1672884325951,3.0073,1253.3,1253.2,1.41404603]
[1672884327415,5.5073,1253.4,1253.2,1.41404603]
[1672884327737,2.5,1253.4,1253.2,1.41404603]
[1672884327944,5.5073,1253.4,1253.2,1.41404603]
[1672884328371,3.6814,1253.3,1252.9,2.5]
[1672884328681,3.0073,1253.2,1252.9,2.5]
[1672884328892,2.0,1253.1,1252.9,2.5]
[1672884329314,2.0,1253.1,1252.8,2.5]
[1672884329631,2.0,1253.1,1252.6,26.1020363]
[1672884329841,3.0073,1253.0,1252.7,2.5]
[1672884330679,3.0073,1253.0,1252.6,1.78523728]
[1672884330887,3.0073,1253.0,1252.7,2.5]
[1672884332362,2.5,1252.9,1252.7,2.5]
[1672884333727,3.0073,1253.0,1252.7,2.5]
[1672884334147,3.0073,1253.0,1252.7,5.5073]
[1672884334354,3.0073,1253.0,1252.7,2.5]
[1672884334775,3.0073,1253.0,1252.7,5.5073]
[1672884335615,2.0,1253.1,1252.7,5.5073]
[1672884337400,4.1887,1253.2,1252.8,7.971]
[1672884337612,2.5,1253.3,1252.9,3.0073]
[1672884337825,2.5,1253.3,1253.0,2.5]
[1672884343925,9.6593,1253.4,1253.1,3.0073]
[1672884344130,5.5073,1253.4,1253.1,3.0073]
[1672884344346,5.5073,1253.4,1253.2,1.5]
[1672884345919,2.5,1253.4,1253.2,1.5]
[1672884346127,5.5073,1253.4,1253.2,1.5]
[1672884347919,5.5073,1253.4,1253.1,3.0073]
[1672884350329,5.5073,1253.4,1253.1,3.0093]
[1672884350850,5.5073,1253.4,1253.1,0.002]
[1672884351268,2.5,1253.4,1253.1,0.002]
[1672884351483,5.5093,1253.4,1253.1,0.002]
[1672884354435,2.0,1253.2,1253.1,0.002]
[1672884364213,2.502,1253.4,1253.1,0.002]
[1672884364431,2.502,1253.4,1253.1,1.78723728]
[1672884364630,2.502,1253.4,1253.1,4.28723728]
[1672884364952,2.502,1253.4,1253.2,3.0073]
[1672884365160,2.502,1253.4,1253.1,2.502]
[1672884365367,2.502,1253.4,1253.2,3.0073]
[1672884365575,2.502,1253.4,1253.3,1.5]
[1672884365787,2.502,1253.4,1253.2,3.0073]
[1672884371883,2.502,1253.4,1253.1,7.29453728]
[1672884372832,2.502,1253.4,1253.1,4.28723728]
[1672884373355,0.002,1253.4,1253.1,7.29453728]
[1672884373565,0.002,1253.4,1253.3,3.0073]
[1672884373777,0.002,1253.4,1253.3,5.5073]
[1672884374308,0.002,1253.4,1253.3,7.29253728]
[1672884375360,0.002,1253.4,1253.3,5.5073]
[1672884375780,0.002,1253.4,1253.3,2.5]
[1672884379350,6.66177156,1253.5,1253.2,10.471]
[1672884379769,5.0073,1253.4,1253.1,7.29253728]
[1672884380194,5.0073,1253.4,1253.1,5.5073]
[1672884380401,5.0073,1253.4,1253.3,0.002]
[1672884381455,5.0093,1253.4,1253.3,0.002]
[1672884382820,2.002,1253.4,1253.3,0.002]
[1672884386605,2.002,1253.4,1253.3,3.0093]
[1672884386816,0.002,1253.4,1253.3,5.5093]
[1672884387242,0.002,1253.4,1253.3,6.70427689]
[1672884389655,0.002,1253.4,1253.3,5.5093]
[1672884389977,0.002,1253.4,1253.3,6.70427689]
[1672884390389,0.002,1253.4,1253.3,2.502]
[1672884390706,0.002,1253.4,1253.3,5.5093]
[1672884391129,0.002,1253.4,1253.3,6.70384215]
[1672884394384,0.002,1253.4,1253.3,8.48907943]
[1672884394596,0.002,1253.4,1253.3,6.70384215]
[1672884396595,0.002,1253.4,1253.3,3.69654215]
[1672884397019,0.002,1253.4,1253.3,6.70384215]
[1672884398802,0.002,1253.4,1253.3,8.48907943]
[1672884399013,0.002,1253.4,1253.3,15.26553728]
[1672884399228,4.16177156,1253.7,1253.4,10.471]
[1672884399545,2.5,1253.7,1253.5,4.5073]
[1672884408266,2.5,1253.7,1253.5,3.0073]
[1672884411627,2.5,1253.7,1253.4,11.66566556]
[1672884411839,2.5,1253.7,1253.5,4.5073]
[1672884412783,9.66907156,1253.8,1253.5,4.5073]
[1672884412994,2.5,1253.7,1253.5,4.5073]
[1672884415410,2.5,1253.7,1253.5,1.5]
[1672884415615,2.5,1253.7,1253.5,4.5073]
[1672884417404,2.5,1253.7,1253.5,3.0073]
[1672884417616,2.5,1253.7,1253.4,2.5]
[1672884417617,6.66177156,1253.7,1253.4,2.5]
[1672884418879,6.66177156,1253.7,1253.4,5.5073]
[1672884419715,6.66177156,1253.7,1253.4,13.4783]
[1672884420248,6.66177156,1253.7,1253.4,6.70196556]
[1672884420456,6.66177156,1253.7,1253.4,13.4783]
[1672884420667,6.66177156,1253.7,1253.4,14.67296556]
[1672884421188,6.66177156,1253.7,1253.4,6.70196556]
[1672884421406,6.66177156,1253.7,1253.4,5.5073]
[1672884421604,6.66177156,1253.7,1253.4,13.4783]
[1672884422351,6.66177156,1253.7,1253.4,14.67296556]
[1672884424757,6.66177156,1253.7,1253.4,11.66566556]
[1672884424972,6.66177156,1253.7,1253.4,14.67296556]
[1672884425394,6.66177156,1253.7,1253.4,6.70196556]
[1672884425604,6.66177156,1253.7,1253.4,3.0073]
[1672884425815,6.66177156,1253.7,1253.4,4.20196556]
[1672884426127,11.4421582,1253.7,1253.4,4.20196556]
[1672884426544,6.66177156,1253.7,1253.4,4.20196556]
[1672884426754,6.66177156,1253.7,1253.5,1.5]
[1672884431594,6.66177156,1253.7,1253.4,5.98720284]
[1672884431910,4.16177156,1253.6,1253.3,5.47990284]
[1672884432114,2.5,1253.5,1253.3,5.47990284]
[1672884432743,2.5,1253.5,1253.4,1.19466556]
[1672884435165,4.16177156,1253.6,1253.4,1.19466556]
[1672884436014,2.5,1253.5,1253.4,1.19466556]
[1672884437063,4.16177156,1253.6,1253.4,1.19466556]
[1672884437380,2.5,1253.5,1253.4,1.19466556]
[1672884438220,4.16177156,1253.6,1253.4,2.97990284]
[1672884438641,6.66177156,1253.7,1253.5,5.70196556]
[1672884438956,9.49503713,1253.8,1253.6,1.19466556]
[1672884439275,4.16177156,1253.8,1253.7,2.5]
[1672884439686,6.66177156,1253.8,1253.7,2.5]
[1672884440211,6.66177156,1253.8,1253.6,2.5]
[1672884440423,4.16177156,1253.7,1253.4,1.19466556]
[1672884440846,2.5,1253.6,1253.4,1.19466556]
[1672884441056,6.66177156,1253.6,1253.3,8.48720284]
[1672884441473,9.66907156,1253.6,1253.3,8.48720284]
[1672884441683,2.0,1253.5,1253.3,8.48720284]
[1672884442634,2.0,1253.5,1253.3,6.70196556]
[1672884443157,2.0,1253.5,1253.3,8.48720284]
[1672884443469,2.0,1253.5,1253.3,6.70196556]
[1672884446847,9.66907156,1253.6,1253.3,6.70196556]
[1672884446848,6.66177156,1253.6,1253.3,5.47990284]
[1672884447260,6.66177156,1253.6,1253.3,8.48720284]
[1672884452625,6.66177156,1253.6,1253.3,5.47990284]
[1672884453461,6.66177156,1253.6,1253.3,8.48720284]
[1672884453669,6.66177156,1253.6,1253.3,5.47990284]
[1672884453877,6.66177156,1253.6,1253.3,8.48720284]
[1672884455777,6.66177156,1253.6,1253.3,16.45820284]
[1672884456829,6.66177156,1253.6,1253.3,13.45090284]
[1672884457049,6.66177156,1253.6,1253.3,16.45820284]
[1672884457362,6.66177156,1253.6,1253.3,13.45090284]
[1672884457888,6.66177156,1253.6,1253.3,16.45820284]
[1672884458305,6.66177156,1253.6,1253.3,13.45090284]
[1672884458517,6.66177156,1253.6,1253.3,16.45820284]
[1672884459149,4.16177156,1253.6,1253.3,16.45820284]
[1672884459995,4.16177156,1253.6,1253.4,1.19466556]
[1672884460307,2.5,1253.6,1253.4,1.19466556]
[1672884461043,6.16177156,1253.7,1253.4,2.97990284]
[1672884461252,2.0,1253.7,1253.6,2.5]
[1672884462201,6.16177156,1253.7,1253.6,2.5]
[1672884462406,2.0,1253.7,1253.6,2.5]
[1672884462621,2.0,1253.7,1253.5,5.70196556]
[1672884463343,2.0,1253.7,1253.5,4.5073]
[1672884463557,6.66177156,1253.8,1253.5,13.67296556]
[1672884463768,6.66177156,1253.8,1253.6,2.5]
[1672884464510,6.66177156,1253.8,1253.5,5.70196556]
[1672884466087,6.66177156,1253.8,1253.5,4.5073]
[1672884466503,11.4421582,1253.8,1253.5,3.0073]
[1672884466822,11.4421582,1253.8,1253.5,5.5073]
[1672884467242,4.16177156,1253.7,1253.5,5.5073]
[1672884467454,2.5,1253.6,1253.5,5.5073]
[1672884467872,2.5,1253.6,1253.5,3.0073]
[1672884469350,2.5,1253.6,1253.5,5.5073]
[1672884469562,4.16177156,1253.7,1253.5,5.5073]
[1672884470926,4.16177156,1253.7,1253.6,1.5]
[1672884472297,4.16177156,1253.7,1253.6,4.5073]
[1672884472922,4.16177156,1253.7,1253.6,3.0073]
[1672884473131,4.16177156,1253.7,1253.6,4.5073]
[1672884473344,4.16177156,1253.7,1253.6,1.5]
[1672884473974,4.16177156,1253.7,1253.6,4.5073]
[1672884474500,4.16177156,1253.7,1253.6,1.5]
[1672884474806,4.16177156,1253.7,1253.6,4.5073]
[1672884475233,4.16177156,1253.8,1253.6,4.5073]
[1672884475546,4.16177156,1253.8,1253.6,1.5]
[1672884475757,4.16177156,1253.8,1253.6,4.5073]
[1672884478279,4.16177156,1253.8,1253.6,1.5]
[1672884478805,4.16177156,1253.8,1253.6,4.5073]
[1672884479117,4.16177156,1253.8,1253.6,1.5]
[1672884479324,4.16177156,1253.8,1253.6,4.5073]
[1672884480702,4.16177156,1253.8,1253.6,1.5]
[1672884480912,4.16177156,1253.8,1253.6,4.5073]
[1672884481750,2.5,1253.9,1253.6,4.5073]
[1672884485009,2.5,1253.9,1253.6,1.5]
[1672884485220,2.5,1253.9,1253.6,4.5073]
[1672884489952,11.4491185,1253.9,1253.6,4.5073]
[1672884491428,4.1762553,1253.8,1253.6,4.5073]
[1672884491632,2.5,1253.7,1253.6,4.5073]
[1672884492374,4.1762553,1253.8,1253.6,4.5073]
[1672884493530,4.1762553,1253.8,1253.6,1.5]
[1672884494681,4.1762553,1253.8,1253.6,4.5073]
[1672884497416,4.1762553,1253.8,1253.6,5.70186013]
[1672884497628,4.1762553,1253.8,1253.6,4.5073]
[1672884498364,4.1762553,1253.8,1253.6,5.70186013]
[1672884499315,4.1762553,1253.8,1253.6,15.46470033]
[1672884499522,11.4491185,1253.9,1253.6,15.46470033]
[1672884501095,11.4491185,1253.9,1253.6,12.45740033]
[1672884501297,11.4491185,1253.9,1253.6,15.46470033]
[1672884502051,11.4491185,1253.9,1253.6,13.67286013]
[1672884502265,4.1762553,1253.8,1253.6,10.66556013]
[1672884502468,2.5,1253.7,1253.6,13.67286013]
[1672884502676,11.4491185,1253.9,1253.6,13.67286013]
[1672884503104,11.4491185,1253.9,1253.6,10.66556013]
[1672884503418,11.4491185,1253.9,1253.7,3.0073]
[1672884503630,7.2728632,1253.9,1253.8,2.5]
[1672884505728,7.2728632,1253.9,1253.7,3.0073]
[1672884506042,4.18129602,1253.8,1253.7,3.0073]
[1672884512140,4.18129602,1253.8,1253.6,12.45740033]
[1672884512347,4.18129602,1253.8,1253.7,3.0073]
[1672884512770,4.18129602,1253.8,1253.6,12.45740033]
[1672884513408,11.45415922,1253.9,1253.7,3.0073]
[1672884513619,6.68129602,1253.9,1253.8,2.5]
[1672884514458,4.18129602,1253.9,1253.8,2.5]
[1672884514669,6.68129602,1253.9,1253.8,2.5]
[1672884514978,4.18129602,1253.9,1253.8,2.5]
[1672884515404,4.7728632,1254.0,1253.8,2.5]
[1672884515405,8.95415922,1254.0,1253.8,2.5]
[1672884515607,8.95415922,1254.0,1253.9,3.0073]
[1672884515819,4.18129602,1254.0,1253.9,3.0073]
[1672884519184,11.45415922,1254.1,1253.9,3.0073]
[1672884519602,6.68129602,1254.1,1253.9,3.0073]
[1672884525804,6.68129602,1254.1,1253.8,13.4783]
[1672884527485,6.68129602,1254.1,1253.8,10.471]
[1672884528008,6.68129602,1254.1,1253.8,13.4783]
[1672884532843,6.68129602,1254.1,1254.0,2.5]
[1672884533045,4.18129602,1254.1,1254.0,2.5]
[1672884535889,4.18129602,1254.1,1253.9,3.0073]
[1672884536203,4.18129602,1254.1,1254.0,2.5]
[1672884538509,4.18129602,1254.1,1253.9,3.0073]
[1672884538721,6.68129602,1254.1,1253.8,10.471]
[1672884539141,6.68129602,1254.1,1253.9,3.0073]
[1672884539353,4.18129602,1254.1,1254.0,2.5]
[1672884539561,6.68129602,1254.1,1254.0,2.5]
[1672884539880,6.68129602,1254.1,1253.9,3.0073]
[1672884540076,4.18129602,1254.1,1254.0,2.5]
[1672884540290,6.68129602,1254.1,1254.0,2.5]
[1672884540505,4.18129602,1254.1,1254.0,2.5]
[1672884540715,4.18129602,1254.1,1253.9,3.0073]
[1672884540716,6.68129602,1254.1,1253.9,3.0073]
[1672884542089,4.18129602,1254.1,1253.9,3.0073]
[1672884542400,6.68129602,1254.1,1253.9,3.0073]
[1672884543346,6.68129602,1254.1,1254.0,2.5]
[1672884543557,4.18129602,1254.1,1254.0,2.5]
[1672884543868,6.68129602,1254.1,1253.9,3.0073]
[1672884546395,11.45415922,1254.1,1253.9,3.0073]
[1672884547872,8.95415922,1254.1,1253.9,3.0073]
[1672884548075,6.68129602,1254.1,1253.9,3.0073]
[1672884548908,4.18129602,1254.1,1254.0,2.5]
[1672884549125,6.68129602,1254.1,1254.0,2.5]
[1672884549337,4.18129602,1254.1,1254.0,2.5]
[1672884549651,6.68129602,1254.1,1253.9,3.0073]
[1672884549854,6.68129602,1254.1,1254.0,2.5]
[1672884550063,4.18129602,1254.1,1254.0,2.5]
[1672884550282,6.68129602,1254.1,1253.9,3.0073]
[1672884550701,6.68129602,1254.1,1254.0,2.5]
[1672884550918,4.18129602,1254.1,1254.0,2.5]
[1672884551131,11.45415922,1254.1,1253.9,3.0073]
[1672884551749,11.45415922,1254.1,1254.0,2.5]
[1672884551965,8.95415922,1254.1,1254.0,2.5]
[1672884552179,11.45415922,1254.1,1253.9,3.0073]
[1672884552389,8.95415922,1254.1,1254.0,2.5]
[1672884552598,11.45415922,1254.1,1254.0,2.5]
[1672884552813,8.95415922,1254.1,1254.0,2.5]
[1672884553235,4.7728632,1254.1,1254.0,2.5]
[1672884553869,4.7728632,1254.1,1253.9,3.0073]
[1672884554181,4.18361531,1254.0,1253.9,3.0073]
[1672884554391,6.68361531,1254.0,1253.9,3.0073]
[1672884555337,6.68361531,1254.0,1253.8,13.45740033]
[1672884555542,6.68361531,1254.0,1253.9,3.0073]
[1672884555753,4.18361531,1254.0,1253.8,13.45740033]
[1672884555968,6.68361531,1254.0,1253.9,3.0073]
[1672884556176,4.18361531,1254.0,1253.9,3.0073]
[1672884559124,4.18361531,1254.0,1253.9,10.9783]
[1672884560181,4.18361531,1254.0,1253.9,7.971]
[1672884560493,4.18361531,1254.0,1253.9,10.9783]
[1672884560695,4.18361531,1254.0,1253.9,7.971]
[1672884560905,4.18361531,1254.0,1253.9,10.9783]
[1672884561756,4.18361531,1254.0,1253.9,7.971]
[1672884562480,8.95647851,1254.0,1253.9,7.971]
[1672884562910,8.95647851,1254.0,1253.8,3.69456013]
[1672884563121,8.95647851,1254.0,1253.8,11.66556013]
[1672884563967,8.95647851,1254.0,1253.8,14.67286013]
[1672884565540,4.18361531,1253.9,1253.8,14.67286013]
[1672884565740,6.68361531,1253.9,1253.8,14.67286013]
[1672884565956,2.5,1253.9,1253.8,14.67286013]
[1672884566167,10.95647851,1254.0,1253.8,14.67286013]
[1672884567004,6.18361531,1254.0,1253.8,14.67286013]
[1672884567847,10.95647851,1254.0,1253.8,14.67286013]
[1672884568371,4.18361531,1253.9,1253.8,14.67286013]
[1672884568690,6.68361531,1253.9,1253.8,14.67286013]
[1672884569117,6.68361531,1253.9,1253.8,12.17286013]
[1672884569422,6.68361531,1253.9,1253.8,10.9783]
[1672884569638,4.18361531,1253.9,1253.8,10.9783]
[1672884569840,6.68361531,1253.9,1253.8,10.9783]
[1672884570261,6.68361531,1253.9,1253.8,3.0073]
[1672884570685,6.68361531,1253.9,1253.7,3.69456013]
[1672884570889,6.68361531,1253.9,1253.7,1.19456013]
[1672884572270,6.68361531,1253.9,1253.6,15.46470033]
[1672884576052,6.68361531,1253.9,1253.6,13.67286013]
[1672884576576,6.68361531,1253.9,1253.6,15.46470033]
[1672884576786,6.68361531,1253.9,1253.6,13.67286013]
[1672884577311,6.68361531,1253.9,1253.6,12.17286013]
[1672884577618,4.18361531,1253.8,1253.6,12.17286013]
[1672884577827,7.19091531,1253.8,1253.6,12.17286013]
[1672884578037,11.45647851,1253.9,1253.6,10.9783]
[1672884578248,11.45647851,1253.9,1253.6,7.971]
[1672884579932,6.68361531,1253.9,1253.6,7.971]
[1672884581092,11.45647851,1253.9,1253.6,7.971]
[1672884581296,6.68361531,1253.9,1253.6,7.971]
[1672884581507,6.68361531,1253.9,1253.5,13.45740033]
[1672884584027,6.68361531,1253.9,1253.7,2.5]
[1672884584452,6.68361531,1253.9,1253.6,10.9783]
[1672884584770,11.45647851,1253.9,1253.6,3.0073]
[1672884584985,6.68361531,1253.9,1253.6,3.0073]
[1672884585199,3.0073,1253.8,1253.6,3.0073]
[1672884586139,6.68361531,1253.9,1253.6,3.0073]
[1672884586342,6.68361531,1253.9,1253.6,3.00064349]
[1672884588139,6.68361531,1253.9,1253.5,13.45740033]
[1672884588343,6.68361531,1253.9,1253.5,16.46470033]
[1672884588765,6.68361531,1253.9,1253.5,13.45740033]
[1672884588973,6.68361531,1253.9,1253.5,16.46470033]
[1672884590764,6.68361531,1253.9,1253.5,14.67286013]
[1672884592131,9.69091531,1253.9,1253.5,14.67286013]
[1672884592545,14.46377851,1253.9,1253.5,14.67286013]
[1672884593393,4.18361531,1253.8,1253.5,14.67286013]
[1672884594237,14.46377851,1253.9,1253.5,14.67286013]
[1672884595495,4.18361531,1253.8,1253.5,14.67286013]
[1672884597715,4.18361531,1253.8,1253.5,6.70186013]
[1672884601286,14.46377851,1253.9,1253.5,8.49370033]
[1672884602126,4.18361531,1253.8,1253.5,8.49370033]
[1672884602437,2.5,1253.7,1253.6,3.0073]
[1672884602645,14.46377851,1253.9,1253.6,3.0073]
[1672884602857,6.68361531,1253.9,1253.7,2.5]
[1672884604961,6.68361531,1253.9,1253.6,4.20186013]
[1672884605380,6.68361531,1253.9,1253.7,2.5]
[1672884606224,11.45647851,1253.9,1253.7,2.5]
[1672884606428,6.68361531,1253.9,1253.7,2.5]
[1672884609807,6.68361531,1253.9,1253.7,5.5073]
[1672884611167,6.68361531,1253.9,1253.7,6.70186013]
[1672884613485,4.18361531,1253.9,1253.7,6.70186013]
[1672884617589,4.18361531,1253.9,1253.7,5.5073]
[1672884618422,4.18361531,1253.9,1253.7,3.0073]
[1672884618738,8.95647851,1253.9,1253.7,3.0073]
[1672884619379,8.95647851,1253.9,1253.6,14.67286013]
[1672884620117,8.95647851,1253.9,1253.7,2.5]
[1672884620637,4.18361531,1253.9,1253.7,2.5]
[1672884621374,8.95647851,1253.9,1253.7,2.5]
[1672884621800,4.18361531,1253.9,1253.7,2.5]
[1672884623157,4.18361531,1253.9,1253.7,5.5073]
[1672884624848,4.18361531,1253.9,1253.7,2.5]
[1672884625047,4.18361531,1253.9,1253.7,5.5073]
[1672884625369,4.18361531,1253.9,1253.7,2.5]
[1672884625579,4.18361531,1253.9,1253.7,5.5073]
[1672884626000,4.18361531,1253.9,1253.7,6.70186013]
[1672884627369,4.18361531,1253.9,1253.7,3.69456013]
[1672884628208,4.18361531,1253.9,1253.7,6.70186013]
[1672884628419,4.18361531,1253.9,1253.7,3.69456013]
[1672884628633,4.18361531,1253.9,1253.7,6.70186013]
[1672884629685,4.18361531,1253.9,1253.7,3.69456013]
[1672884630104,4.18361531,1253.9,1253.7,6.70186013]
[1672884631784,4.18361531,1253.9,1253.7,3.69456013]
[1672884632000,4.18361531,1253.9,1253.7,14.67286013]
[1672884632310,10.95647851,1254.0,1253.7,14.67286013]
[1672884633678,8.95647851,1254.0,1253.7,14.67286013]
[1672884634311,4.18361531,1253.9,1253.7,14.67286013]
[1672884634518,6.68361531,1253.9,1253.7,14.67286013]
[1672884636727,2.5,1253.9,1253.7,14.67286013]
[1672884637141,6.68361531,1253.9,1253.7,14.67286013]
[1672884637882,2.5,1253.9,1253.7,14.67286013]
[1672884638296,6.68361531,1253.9,1253.7,14.67286013]
[1672884638932,6.68361531,1253.9,1253.7,11.66556013]
[1672884639144,6.68361531,1253.9,1253.7,14.67286013]
[1672884639772,4.18361531,1253.9,1253.7,14.67286013]
[1672884639983,4.18361531,1253.9,1253.7,16.46470033]
[1672884641250,11.45647851,1254.0,1253.7,16.46470033]
[1672884642202,8.95647851,1254.0,1253.7,16.46470033]
[1672884644622,8.95647851,1254.0,1253.7,13.45740033]
[1672884644930,2.5,1253.9,1253.8,10.9783]
[1672884647033,2.5,1253.9,1253.8,7.971]
[1672884647245,11.45647851,1254.0,1253.8,10.9783]
[1672884647973,11.45647851,1254.0,1253.8,7.971]
[1672884648186,11.45647851,1254.0,1253.8,10.9783]
[1672884648819,2.5,1253.9,1253.8,10.9783]
[1672884649030,6.68361531,1253.9,1253.8,10.9783]
[1672884649768,6.68361531,1253.9,1253.8,7.971]
[1672884651761,6.68361531,1253.9,1253.7,6.70186013]
[1672884651986,6.68361531,1253.9,1253.6,13.45740033]
[1672884652187,11.45647851,1253.9,1253.7,2.5]
[1672884652405,6.68361531,1253.9,1253.7,2.5]
[1672884653347,6.68361531,1253.9,1253.7,3.69456013]
[1672884653970,6.68361531,1253.9,1253.7,1.19456013]
[1672884654176,6.68361531,1253.9,1253.6,13.45740033]
[1672884654386,9.69091531,1253.9,1253.6,13.45740033]
[1672884654818,14.46377851,1253.9,1253.6,13.45740033]
[1672884655341,14.46377851,1253.9,1253.6,5.48640033]
[1672884655970,2.0,1253.7,1253.6,3.69456013]
[1672884656181,2.0,1253.7,1253.6,5.48640033]
[1672884657014,14.46377851,1253.9,1253.6,5.48640033]
[1672884657229,14.46377851,1253.9,1253.6,3.69456013]
[1672884658281,4.18361531,1253.8,1253.6,3.69456013]
[1672884658498,2.0,1253.7,1253.6,1.19456013]
[1672884659749,2.0,1253.7,1253.6,2.98640033]
[1672884659966,9.69091531,1253.9,1253.6,2.98640033]
[1672884660388,9.69091531,1253.9,1253.6,1.19456013]
[1672884660590,4.18361531,1253.8,1253.6,1.19456013]
[1672884660795,2.0,1253.7,1253.6,1.19456013]
[1672884661012,2.0,1253.7,1253.6,4.20186013]
[1672884663853,2.0,1253.7,1253.6,4.19735715]
[1672884670162,2.0,1253.7,1253.6,1.19005715]
[1672884670374,2.0,1253.7,1253.6,4.19735715]